{"text_format":"2","workbook":"xlsx","n_sheets":4,"sheets":["Форма_Инд один","Форма_Инд_изм вид ОКС","Форма_Инд по СЗ","Прайсы"],"not_rendered":{"charts":0,"images":0,"macros":0,"external_links":0,"defined_names":7,"comments":0,"pivot_tables":0},"unopened":[],"bounds":{"document_bytes":16777216,"sheet_cells":100000,"run_cost":"one","rows_first":2000,"rows_last":500,"rows_between":2000,"halvings":0,"cell_chars":16384,"cell_head_chars":4096},"cells_cut":0,"cells_raw":0,"read":"whole","date_system":"1900"}

{"sheet":"Форма_Инд один","index":0,"n_rows":38,"n_cols":9,"rows_kept":38,"cut":false,"hidden":false,"merged":[[2,2,2,6],[4,0,4,4],[0,0,0,8],[7,0,9,0],[7,1,9,1],[7,2,7,3],[7,4,8,4],[7,5,8,5],[7,6,9,6],[7,7,8,7],[7,8,9,8],[8,2,9,2],[5,0,5,4],[29,1,29,8],[30,1,30,8],[32,1,32,8],[33,1,33,8],[31,1,31,8]]}
["Определение сметной стоимости работ, предусмотренных проектной документацией по объекту строительства, используемой при определении начальной (максимальной) цены контракта, для расчета коэффициента корректировки цены контракта, необходимость которой вызвана существенным возрастанием стоимости строительных ресурсов"]
[]
[null,null,"(наименование объекта)"]
[]
["Уровень цен по утвержденной проектной документации, используемой при определении НМЦК",{"$nulls":4},"1 кв. 2019 год"]
["Уровень цен выполнения Расчета",{"$nulls":4},"3 кв. 2021 год"]
[]
["№ п/п","Вид работ/затрат","Сметная стоимость работ по утвержденной проектной документации (ПД), используемой при определении НМЦК, тыс.руб.",null,"Индекс-дефлятор от даты определения Цнмцк до даты Расчета1","Сметная стоимость работ по утвержденной ПД, приведенная индексом-дефлятором к уровню цен выполнения Расчета,\nтыс.руб.","Индекс \nМинстроя России, действующий на дату выполнения Расчета (для позиций по п.1.1, \nп. 2.1 и п. 3) /\nиндекс-дефлятор2 (для позиций по \nп. 1.2 и 2.2)","Пересчитанная сметная стоимость работ в уровне цен выполнения Расчета, \nтыс.руб.","Порядок определения стоимости для включения в столбец 8"]
[null,null,"2000-01-01","в текущем уровне цен по утвержденной ПД \n1 кв. 2019"]
[null,null,null,"(Цнмцк)","(Идеф)","(Цнмцк х Идеф)",null,"(Цнов)"]
[1,2,3,4,5,"6 = 4 х 5",7,8,9]
[1,"Строительно-монтажные работы",{"$f":"C14+C16+C15","v":283094.83916154574},{"$f":"D14+D16+D15","v":2103854.9233742701},null,{"$f":"F14+F16+F15","v":2217463.0892364806},null,{"$f":"H14+H16+H15","v":2502828.2802501223},"столбец 8 = сумма столбца 8 по пунктам 1.1, 1.2, 1.3"]
[null,"в том числе"]
["1.13","Строительно-монтажные работы без учета материалов, включенных в сметную документацию с обоснованием \"прайс-лист\"",281435.61114826053,{"$f":"C14*7.43","v":2091066.5908315757},1.054,{"$f":"D14*E14","v":2203984.1867364808},8.67,{"$f":"C14*G14","v":2440046.7486554189},"столбец 8 = \nстолбец 3 х столбец 7"]
["1.24","Материалы, включенные в сметную документацию с обоснованием \"прайс-лист\" и для которых не требуется проведение конъюнктурного анализа",125,{"$f":"C15*7.43","v":928.75},{"$f":"E14","v":1.054},{"$f":"D15*E15","v":978.90250000000003},1.0680000000000001,{"$f":"D15*G15","v":991.90500000000009},"столбец 8 = \nстолбец 4 х столбец 7"]
["1.34","Материалы, включенные в сметную документацию с обоснованием \"прайс-лист\" и для которых требуется проведение конъюнктурного анализа",{"$f":"D16/7.73","v":1534.228013285187},{"$f":"Прайсы!G16","v":11859.582542694496},{"$f":"E14","v":1.054},{"$f":"D16*E16","v":12499.999999999998},null,{"$f":"Прайсы!K16","v":61789.626594703594},"по отдельному расчету, выполненному по результатам проведения конъюнктурного анализа"]
[2,"Оборудование",{"$f":"C19+C21+C20","v":17430.280740037946},{"$f":"D19+D21+D20","v":6051.555977229601},null,{"$f":"F19+F21+F20","v":6378.34},null,{"$f":"H19+H21+H20","v":9660.9175941756002},"столбец 8 = сумма столбца 8 по пунктам 2.1, 2.2, 2.3"]
[null,"в том числе"]
["2.1","Оборудование без учета оборудования, включенного в сметную документацию с обоснованием \"прайс-лист\"",0,{"$f":"C19*4.39","v":0},{"$f":"E14","v":1.054},{"$f":"D19*E19","v":0},4.8899999999999997,{"$f":"C19*G19","v":0},"столбец 8 = \nстолбец 3 х столбец 7"]
["2.24","Оборудование, включенное в сметную документацию с обоснованием \"прайс-лист\" и для которого не требуется проведение конъюнктурного анализа",500,{"$f":"C20*4.39","v":2195},{"$f":"E15","v":1.054},2313.5300000000002,1.0680000000000001,{"$f":"D20*G20","v":2344.2600000000002},"столбец 8 = \nстолбец 4 х столбец 7"]
["2.34","Оборудование, включенное в сметную документацию с обоснованием \"прайс-лист\" и для которого требуется проведение конъюнктурного анализа",{"$f":"D21*4.39","v":16930.280740037946},{"$f":"Прайсы!G20","v":3856.555977229601},{"$f":"E14","v":1.054},{"$f":"D21*E21","v":4064.8099999999995},null,{"$f":"Прайсы!K20","v":7316.6575941755991},"по отдельному расчету, выполненному по результатам проведения конъюнктурного анализа"]
["3 5","Прочие работы и затраты",{"$f":"C24+C25","v":10578.53},{"$f":"D24+D25","v":56199.921619200002},null,{"$f":"F24+F25","v":59234.71738663681},null,{"$f":"H24+H25","v":59632.06220652},"столбец 8 = сумма столбца 8 по пунктам 3.1 и 3.2"]
[null,"в том числе"]
["3.1","Проектные работы",{"$f":"10578.53*0.6","v":6347.1180000000004},{"$f":"C24*4.32*1.19","v":32629.264214400002},{"$f":"E14","v":1.054},{"$f":"D24*E24","v":34391.244481977606},{"$f":"4.59*1.19","v":5.4620999999999995},{"$f":"C24*G24","v":34668.593227799996},"столбец 8 = \nстолбец 3 х столбец 7"]
["3.2","Изыскательские работы",{"$f":"10578.53*0.4","v":4231.4120000000003},{"$f":"C25*4.4*1.266","v":23570.6574048},{"$f":"E14","v":1.054},24843.4729046592,{"$f":"4.66*1.266","v":5.8995600000000001},{"$f":"C25*G25","v":24963.46897872},"столбец 8 = \nстолбец 3 х столбец 7"]
[null,"ВСЕГО:",{"$f":"C22+C17+C12","v":311103.64990158367},{"$f":"D22+D17+D12","v":2166106.4009706997},null,{"$f":"F22+F17+F12","v":2283076.1466231174},null,{"$f":"H22+H17+H12","v":2572121.2600508179}]
[]
[null,"Примечания:"]
[null,"!!! Все данные в таблице приведены условно"]
[1,"В столбце 5 указывается индекс-дефлятор Министерства экономического развития Российской Федерации по строке «Инвестиции в основной капитал (капитальные вложения)», \nдействующий на дату определения начальной (максимальной) цены контракта и рассчитываемый для периода с даты, определения показателя Цнмцк по дату выполнения Расчета."]
[2,"В столбце 7 для позиций по пунктам 1.2 и 2.2 указывается индекс-дефлятор Министерства экономического развития Российской Федерации по строке «Инвестиции в основной капитал (капитальные вложения)», действующий на дату пересчета сметной документации и рассчитанный для периода с даты утверждения проектной документации до даты пересчета сметной стоимости."]
[3,"В случае если в составе сводного сметного расчета стоимости строительства в составе утвержденной проектной документации, используемой при определении НМЦК, для определения сметной стоимости строительства в текущем уровне цен используются индексы изменения сметной стоимости по различным видам объектов капитального строительства, то стоимость строительно-монтажных работ приводятся в разрезе каждого вида объекта капитального строительства."]
[4,"По пунктам 1.2, 1.3, 2.2 и 2.3 сметная стоимость работ, приведенная в столбце 3, не используется для определения стоимости, отражаемой в столбцах 6 и 8."]
[5,"Перечень прочих работ и затрат определяется на основании сводного сметного расчета стоимости строительства в составе утвержденной проектной документации, \nиспользуемой при определении НМЦК."]
[]
[null,"Расчет коэффициента корректировки цены контракта Ккор"]
[]
[null,"Ккор = Цнов / (Цнмцк х Идеф)",null,"Ккор =",{"$f":"H26/F26","v":1.126603360932672}]

{"sheet":"Форма_Инд_изм вид ОКС","index":1,"n_rows":39,"n_cols":11,"rows_kept":39,"cut":false,"hidden":false,"merged":[[0,0,0,10],[7,0,9,0],[7,1,9,1],[7,2,7,3],[7,6,8,6],[7,7,8,7],[7,8,9,8],[7,9,8,9],[7,10,9,10],[8,2,9,2],[32,1,32,10],[33,1,33,10],[34,1,34,10],[7,4,9,4],[7,5,8,5],[8,3,9,3],[30,1,30,10],[4,0,4,4],[5,0,5,4],[2,2,2,7],[29,1,29,10],[31,1,31,10]]}
["Определение сметной стоимости работ, предусмотренных проектной документацией по объекту строительства, используемой при определении начальной (максимальной) цены контракта, для расчета коэффициента корректировки цены контракта, необходимость которой вызвана существенным возрастанием стоимости строительных ресурсов"]
[]
[null,null,"(наименование объекта)"]
[]
["Уровень цен по утвержденной проектной документации, используемой при определении НМЦК",{"$nulls":4},"1 кв. 2019 год"]
["Уровень цен выполнения Расчета",{"$nulls":4},"3 кв. 2021 год"]
[]
["№ п/п","Вид работ/затрат","Сметная стоимость работ по утвержденной проектной документации (ПД), используемой при определении НМЦК, тыс.руб.",null,"Индекс Минстроя России, учитывающий специфику строительства объекта, на дату первого его публикования\n1 кв. 2020 / индекс-дефлятор1.1 (для позиций по \nп. 1.2 и 2.2)","Сметная стоимость работ по утвержденной ПД в уровне цен первого публикования индекса Минстроя России, учитывающего специфику строительства объекта,\nтыс.руб.","Индекс-дефлятор от от даты определения Цнмцк до даты Расчета1","Сметная стоимость работ по утвержденной ПД, приведенная индексом-дефлятором к уровню цен выполнения Расчета,\nтыс.руб.","Индекс \nМинстроя России, учитывающий специфику строительства объекта и действующий на дату выполнения Расчета (для позиций по п.1.1, \nп. 2.1 и п. 3) /\nиндекс-дефлятор2 (для позиций по \nп. 1.2 и 2.2)","Пересчитанная сметная стоимость работ в уровне цен выполнения Расчета, \nтыс.руб.","Порядок определения стоимости для включения в столбец 10"]
[null,null,"2000-01-01","в текущем уровне цен по утвержденной ПД \n1 кв. 2019"]
[{"$nulls":5},"(Цнмцк)","(Идеф)","(Цнмцк х Идеф)",null,"(Цнов)"]
[1,2,3,4,5,"6 = 3 х 5",7,"8 = 6 х 7",9,10,11]
[1,"Строительно-монтажные работы",{"$f":"C14+C16+C15","v":283094.83916154574},{"$f":"D14+D16+D15","v":2103854.9233742701},null,{"$f":"F14+F16+F15","v":2107180.8127874606},null,{"$f":"H14+H16+H15","v":2214647.0342396209},null,{"$f":"J14+J16+J15","v":2502877.5040001227},"столбец 10 = сумма столбца 10 по пунктам 1.1, 1.2, 1.3"]
[null,"в том числе"]
["1.13","Строительно-монтажные работы без учета материалов, включенных в сметную документацию с обоснованием \"прайс-лист\"",281435.61114826053,{"$f":"C14*7.43","v":2091066.5908315757},7.44,{"$f":"C14*E14","v":2093880.9469430584},1.0509999999999999,{"$f":"F14*G14","v":2200668.8752371543},8.67,{"$f":"C14*I14","v":2440046.7486554189},"столбец 10 = \nстолбец 3 х столбец 9"]
["1.24","Материалы, включенные в сметную документацию с обоснованием \"прайс-лист\" и для которых не требуется проведение конъюнктурного анализа",125,{"$f":"C15*7.43","v":928.75},1.04,{"$f":"D15*E15","v":965.9},{"$f":"G14","v":1.0509999999999999},{"$f":"F15*G15","v":1015.1608999999999},1.121,{"$f":"D15*I15","v":1041.1287500000001},"столбец 10 = \nстолбец 4 х столбец 9"]
["1.34","Материалы, включенные в сметную документацию с обоснованием \"прайс-лист\" и для которых требуется проведение конъюнктурного анализа",{"$f":"D16/7.73","v":1534.228013285187},{"$f":"Прайсы!G16","v":11859.582542694496},{"$f":"E15","v":1.04},{"$f":"D16*E16","v":12333.965844402275},{"$f":"G14","v":1.0509999999999999},{"$f":"F16*G16","v":12962.99810246679},null,{"$f":"Прайсы!K16","v":61789.626594703594},"по отдельному расчету, выполненному по результатам проведения конъюнктурного анализа"]
[2,"Оборудование",{"$f":"C19+C21+C20","v":17430.280740037946},{"$f":"D19+D21+D20","v":6051.555977229601},null,{"$f":"F19+F21+F20","v":6293.6182163187859},null,{"$f":"H19+H21+H20","v":6614.592745351043},null,{"$f":"J19+J21+J20","v":9777.2525941755994},"столбец 10 = сумма столбца 10 по пунктам 2.1, 2.2, 2.3"]
[null,"в том числе"]
["2.1","Оборудование без учета оборудования, включенного в сметную документацию с обоснованием \"прайс-лист\"",0,{"$f":"C19*4.39","v":0},4.4000000000000004,{"$f":"E19*C19","v":0},{"$f":"G14","v":1.0509999999999999},{"$f":"F19*G19","v":0},4.8899999999999997,{"$f":"C19*I19","v":0},"столбец 10 = \nстолбец 3 х столбец 9"]
["2.24","Оборудование, включенное в сметную документацию с обоснованием \"прайс-лист\" и для которого не требуется проведение конъюнктурного анализа",500,{"$f":"C20*4.39","v":2195},{"$f":"E15","v":1.04},{"$f":"E20*D20","v":2282.8000000000002},{"$f":"G15","v":1.0509999999999999},{"$f":"F20*G20","v":2399.2228},{"$f":"I15","v":1.121},{"$f":"D20*I20","v":2460.5949999999998},"столбец 10 = \nстолбец 4 х столбец 9"]
["2.34","Оборудование, включенное в сметную документацию с обоснованием \"прайс-лист\" и для которого требуется проведение конъюнктурного анализа",{"$f":"D21*4.39","v":16930.280740037946},{"$f":"Прайсы!G20","v":3856.555977229601},{"$f":"E15","v":1.04},{"$f":"E21*D21","v":4010.8182163187853},{"$f":"G14","v":1.0509999999999999},{"$f":"F21*G21","v":4215.3699453510435},null,{"$f":"Прайсы!K20","v":7316.6575941755991},"по отдельному расчету, выполненному по результатам проведения конъюнктурного анализа"]
["3 5","Прочие работы и затраты",{"$f":"C24+C25","v":10578.53},{"$f":"D24+D25","v":56199.921619200002},null,{"$f":"F24+F25","v":56383.564900000005},null,{"$f":"H24+H25","v":59259.126709900003},null,{"$f":"J24+J25","v":59632.06220652},"столбец 10 = сумма столбца 10 по пунктам 3.1 и 3.2"]
[null,"в том числе"]
["3.1","Проектные работы",{"$f":"10578.53*0.6","v":6347.1180000000004},{"$f":"C24*4.32*1.19","v":32629.264214400002},5.15,{"$f":"C24*E24","v":32687.657700000003},{"$f":"G14","v":1.0509999999999999},{"$f":"F24*G24","v":34354.728242700003},{"$f":"4.59*1.19","v":5.4620999999999995},{"$f":"C24*I24","v":34668.593227799996},"столбец 10 = \nстолбец 3 х столбец 9"]
["3.2","Изыскательские работы",{"$f":"10578.53*0.4","v":4231.4120000000003},{"$f":"C25*4.4*1.266","v":23570.6574048},5.6,{"$f":"C25*E25","v":23695.907200000001},{"$f":"G14","v":1.0509999999999999},{"$f":"F25*G25","v":24904.398467200001},{"$f":"4.66*1.266","v":5.8995600000000001},{"$f":"C25*I25","v":24963.46897872},"столбец 10 = \nстолбец 3 х столбец 9"]
[null,"ВСЕГО:",{"$f":"C22+C17+C12","v":311103.64990158367},{"$f":"D22+D17+D12","v":2166106.4009706997},null,{"$f":"F22+F17+F12","v":2169857.9959037793},null,{"$f":"H22+H17+H12","v":2280520.7536948719},null,{"$f":"J22+J17+J12","v":2572286.8188008182}]
[]
[null,"Примечания:"]
[null,"!!! Все данные в таблице приведены условно"]
[1,"В столбце 7 указывается индекс-дефлятор Министерства экономического развития Российской Федерации по строке «Инвестиции в основной капитал (капитальные вложения)», \nдействующий на дату определения начальной (максимальной) цены контракта и рассчитываемый для периода с даты, определения показателя Цнмцк по дату выполнения Расчета. "]
["1.1","В столбце 5 указывается индекс-дефлятор Министерства экономического развития Российской Федерации по строке «Инвестиции в основной капитал (капитальные вложения)», \nдействующий на дату определения начальной (максимальной) цены контракта и рассчитываемый для периода с даты утверждения проектной документации до даты первого публикования индекса изменения сметной стоимости Минстроя России, учитывающего специфику строительства объекта."]
[2,"В столбце 9 для позиций по пунктам 1.2 и 2.2 указывается индекс-дефлятор Министерства экономического развития Российской Федерации по строке «Инвестиции в основной капитал (капитальные вложения)», действующий на дату пересчета сметной документации и рассчитанный для периода с даты утверждения проектной документации до даты пересчета сметной стоимости."]
[3,"В случае если в составе сводного сметного расчета стоимости строительства в составе утвержденной проектной документации, используемой при определении НМЦК, для определения сметной стоимости строительства в текущем уровне цен используются индексы изменения сметной стоимости по различным видам объектов капитального строительства, то стоимость строительно-монтажных работ приводятся в разрезе каждого вида объекта капитального строительства."]
[4,"По пунктам 1.2, 1.3, 2.2 и 2.3 сметная стоимость работ, приведенная в столбце 3, не используется для определения стоимости, отражаемой в столбцах 6, 8 и 10."]
[5,"Перечень прочих работ и затрат определяется на основании сводного сметного расчета стоимости строительства в составе утвержденной проектной документации, \nиспользуемой при определении НМЦК."]
[]
[null,"Расчет коэффициента корректировки цены контракта Ккор"]
[]
[null,"Ккор = Цнов / (Цнмцк х Идеф)",null,"Ккор =",null,null,{"$f":"J26/H26","v":1.1279383512003698}]

{"sheet":"Форма_Инд по СЗ","index":2,"n_rows":41,"n_cols":17,"rows_kept":41,"cut":false,"hidden":false,"merged":[[35,1,35,16],[36,1,36,16],[0,0,0,16],[8,2,8,5],[9,2,10,2],[8,6,9,6],[7,1,10,1],[7,0,10,0],[9,3,9,5],[7,9,8,13],[7,2,7,6],[7,8,9,8],[7,7,9,7],[34,1,34,16],[7,14,10,14],[9,9,10,9],[9,10,10,10],[9,13,10,13],[9,11,10,11],[9,12,10,12],[7,16,10,16],[32,1,32,16],[33,1,33,16],[1,4,1,12],[2,4,2,12],[4,0,4,5],[5,0,5,5],[7,15,9,15]]}
["Определение сметной стоимости работ, предусмотренных проектной документацией по объекту строительства, используемой при определении начальной (максимальной) цены контракта, для расчета коэффициента корректировки цены контракта, необходимость которой вызвана существенным возрастанием стоимости строительных ресурсов"]
[]
[{"$nulls":4},"(наименование объекта)"]
[]
["Уровень цен по утвержденной проектной документации, используемой при определении НМЦК",{"$nulls":5},"1 кв. 2019 год"]
["Уровень цен выполнения Расчета",{"$nulls":5},"3 кв. 2021 год"]
[]
["№ п/п","Вид работ/затрат","Сметная стоимость работ по утвержденной проектной документации (ПД), используемой при определении НМЦК, тыс.руб.",{"$nulls":4},"Индекс-дефлятор от даты определения Цнмцк до даты Расчета1","Сметная стоимость работ по утвержденной ПД, приведенная индексом-дефлятором к уровню цен выполнения Расчета,\nтыс.руб.","Индекс \nМинстроя России, действующий на дату выполнения Расчета \n(для позиций по п.1.1, п. 2.1 и п. 3) ",{"$nulls":4},"Индекс-дефлятор2 (для позиций по \nп. 1.2 и 2.2)","Пересчитанная сметная стоимость работ в уровне цен выполнения Расчета, \nтыс.руб.","Порядок определения стоимости для включения в столбец 16"]
[null,null,"2000-01-01",null,null,null,"в текущем уровне цен по утвержденной ПД \n1 кв. 2019"]
[null,null,"Всего","в том числе",{"$nulls":5},"ОТ","ЭММ","МАТ","Обору-\nдование","Прочие"]
[null,null,null,"ОТ","ЭММ","МАТ","(Цнмцк)","(Идеф)","(Цнмцк х Идеф)",{"$nulls":6},"(Цнов)"]
[1,2,3,4,5,6,7,8,"9 = 7 х 8",10,11,12,13,14,15,16,17]
[1,"Строительно-монтажные работы",{"$f":"C15+C17+C16","v":283094.83916154579},null,null,null,{"$f":"G15+G17+G16","v":2103854.9233742706},null,{"$f":"I15+I17+I16","v":2217463.0892364811},{"$nulls":6},{"$f":"P15+P17+P16","v":2505023.4780170792},"столбец 16 = сумма столбца 16 по пунктам 1.1, 1.2, 1.3"]
[null,"в том числе"]
["1.13","Строительно-монтажные работы без учета материалов, включенных в сметную документацию с обоснованием \"прайс-лист\"",{"$f":"D15+E15+F15","v":281435.61114826059},50658.410006686907,28143.561114826061,202633.64002674763,{"$f":"C15*7.43","v":2091066.5908315761},1.054,{"$f":"G15*H15","v":2203984.1867364813},23.2,8.01,5.14,null,null,null,{"$f":"D15*J15+E15*K15+F15*L15","v":2442241.9464223757},"столбец 16 = \n(столбец 4 х столбец 10) + (столбец 5 х столбец 11) + (столбец 6 х столбец 12)"]
["1.24","Материалы, включенные в сметную документацию с обоснованием \"прайс-лист\" и для которых не требуется проведение конъюнктурного анализа",125,null,null,null,{"$f":"C16*7.43","v":928.75},{"$f":"H15","v":1.054},{"$f":"G16*H16","v":978.90250000000003},{"$nulls":5},1.0680000000000001,{"$f":"G16*O16","v":991.90500000000009},"столбец 16 = \nстолбец 7 х столбец 15"]
["1.34","Материалы, включенные в сметную документацию с обоснованием \"прайс-лист\" и для которых требуется проведение конъюнктурного анализа",{"$f":"G17/7.73","v":1534.228013285187},null,null,null,{"$f":"Прайсы!G16","v":11859.582542694496},{"$f":"H15","v":1.054},{"$f":"G17*H17","v":12499.999999999998},{"$nulls":6},{"$f":"Прайсы!K16","v":61789.626594703594},"по отдельному расчету, выполненному по результатам проведения конъюнктурного анализа"]
[2,"Оборудование",{"$f":"C20+C22+C21","v":17430.280740037946},null,null,null,{"$f":"G20+G22+G21","v":6051.555977229601},null,{"$f":"I20+I22+I21","v":6378.34},{"$nulls":6},{"$f":"P20+P22+P21","v":9660.9175941756002},"столбец 16 = сумма столбца 16 по пунктам 2.1, 2.2, 2.3"]
[null,"в том числе"]
["2.1","Оборудование без учета оборудования, включенного в сметную документацию с обоснованием \"прайс-лист\"",0,null,null,null,{"$f":"C20*4.39","v":0},{"$f":"H15","v":1.054},{"$f":"G20*H20","v":0},null,null,null,4.8899999999999997,null,null,{"$f":"C20*M20","v":0},"столбец 16 = \nстолбец 3 х столбец 13"]
["2.24","Оборудование, включенное в сметную документацию с обоснованием \"прайс-лист\" и для которого не требуется проведение конъюнктурного анализа",500,null,null,null,{"$f":"C21*4.39","v":2195},{"$f":"H16","v":1.054},2313.5300000000002,{"$nulls":5},1.0680000000000001,{"$f":"G21*O21","v":2344.2600000000002},"столбец 16 = \nстолбец 7 х столбец 15"]
["2.34","Оборудование, включенное в сметную документацию с обоснованием \"прайс-лист\" и для которого требуется проведение конъюнктурного анализа",{"$f":"G22*4.39","v":16930.280740037946},null,null,null,{"$f":"Прайсы!G20","v":3856.555977229601},{"$f":"H15","v":1.054},{"$f":"G22*H22","v":4064.8099999999995},{"$nulls":6},{"$f":"Прайсы!K20","v":7316.6575941755991},"по отдельному расчету, выполненному по результатам проведения конъюнктурного анализа"]
["3 5","Прочие работы и затраты",{"$f":"C25+C26","v":10578.53},null,null,null,{"$f":"G25+G26","v":56199.921619200002},null,{"$f":"I25+I26","v":59234.71738663681},{"$nulls":6},{"$f":"P25+P26","v":59632.06220652},"столбец 16 = сумма столбца 16 по пунктам 3.1 и 3.2"]
[null,"в том числе"]
["3.1","Проектные работы",{"$f":"10578.53*0.6","v":6347.1180000000004},null,null,null,{"$f":"C25*4.32*1.19","v":32629.264214400002},{"$f":"H15","v":1.054},{"$f":"G25*H25","v":34391.244481977606},{"$nulls":5},{"$f":"4.59*1.19","v":5.4620999999999995},{"$f":"C25*O25","v":34668.593227799996},"столбец 16 = \nстолбец 3 х столбец 15"]
["3.2","Изыскательские работы",{"$f":"10578.53*0.4","v":4231.4120000000003},null,null,null,{"$f":"C26*4.4*1.266","v":23570.6574048},{"$f":"H15","v":1.054},24843.4729046592,{"$nulls":5},{"$f":"4.66*1.266","v":5.8995600000000001},{"$f":"C26*O26","v":24963.46897872},"столбец 16 = \nстолбец 3 х столбец 15"]
[null,"ВСЕГО:",{"$f":"C23+C18+C13","v":311103.64990158373},null,null,null,{"$f":"G23+G18+G13","v":2166106.4009707002},null,{"$f":"I23+I18+I13","v":2283076.1466231178},{"$nulls":6},{"$f":"P23+P18+P13","v":2574316.4578177747}]
[]
[null,"Примечания:"]
[null,"!!! Все данные в таблице приведены условно"]
[null,"ОТ - оплата труда","ЭММ - эксплуатация машин и механизмов",null,null,null,"МАТ - материалы"]
[]
[1,"В столбце 8 указывается индекс-дефлятор Министерства экономического развития Российской Федерации по строке «Инвестиции в основной капитал (капитальные вложения)», \nдействующий на дату определения начальной (максимальной) цены контракта и рассчитываемый для периода с даты определения показателя Цнмцк по дату выполнения Расчета."]
[2,"В столбце 15 для позиций по пунктам 1.2 и 2.2 указывается индекс-дефлятор Министерства экономического развития Российской Федерации по строке «Инвестиции в основной капитал (капитальные вложения)», действующий на дату пересчета сметной документации и рассчитанный для периода с даты утверждения проектной документации до даты пересчета сметной стоимости."]
[3,"В случае если в составе сводного сметного расчета стоимости строительства в составе утвержденной проектной документации, используемой при определении НМЦК, для определения сметной стоимости строительства в текущем уровне цен используются индексы изменения сметной стоимости по различным видам объектов капитального строительства, то стоимость строительно-монтажных работ приводятся в разрезе каждого вида объекта капитального строительства."]
[4,"По пунктам 1.2, 1.3, 2.2 и 2.3 сметная стоимость работ, приведенная в столбце 3, не используется для определения стоимости, отражаемой в столбцах 9 и 16."]
[5,"Перечень прочих работ и затрат определяется на основании сводного сметного расчета стоимости строительства в составе утвержденной проектной документации, \nиспользуемой при определении НМЦК."]
[]
[null,"Расчет коэффициента корректировки цены контракта Ккор"]
[]
[null,"Ккор = Цнов / (Цнмцк х Идеф)",{"$nulls":4},"Ккор =",{"$f":"P27/I27","v":1.1275648697155496}]

{"sheet":"Прайсы","index":3,"n_rows":23,"n_cols":11,"rows_kept":23,"cut":false,"hidden":false,"merged":[[8,7,8,9],[6,0,7,0],[6,1,7,1],[6,2,7,2],[6,3,7,3],[6,4,7,4],[6,10,7,10],[6,5,6,6],[0,0,0,10],[2,2,2,7],[4,0,4,5],[6,7,6,9]]}
["Определение стоимости материалов и оборудования, включенных в сметную документацию с обоснованием \"прайс-лист\", по результатам конъюнктурного анализа"]
[]
[null,null,"(наименование объекта)"]
[]
["Уровень цен по утвержденной проектной документации, используемой при определении НМЦК",{"$nulls":5},"1 кв. 2019 год"]
[]
["№ п/п","Номер ЛСР, позиция в ЛСР","Наименование ресурса","Ед.изм.","Кол-во","Цена в текущем уровне цен \nпо утвержденной проектной документации, используемой при определении НМЦК\n1 кв. 2019",null,"Цена за ед.изм., определенная по результатам конъюнктурного анализа на дату выполнения Расчета*, \nруб.\n",null,null,"Цена всего объема ресурса по результатам конъюнктурного анализа,\nтыс.руб."]
[{"$nulls":5},"за ед.изм., \nруб.","на весь объем,\nтыс. руб.","Прайс 1","Прайс 2","Прайс 3"]
[1,2,3,4,5,6,"7 = (5 х 6)/1000",8,null,null,"9 = (5 х 8)/1000"]
["МАТЕРИАЛЫ С ОБОСНОВАНИЕМ \"ПРАЙС-ЛИСТ\""]
[1,"ЛСР 02-08, п. 264","Асфальтобетон ЩМА-11 на ПБВ-60","т",350,951.1,{"$f":"E11*F11/1000","v":332.88499999999999},1550,1700,1595,{"$f":"E11*H11/1000","v":542.5}]
[2,"ЛСР 02-08, п. 265","Асфальтобетон А22НН","т",500,813.14,{"$f":"E12*F12/1000","v":406.57},1495,1460,1510,{"$f":"E12*I12/1000","v":730}]
[3,"ЛСР 02-08, п. 266","Асфальтобетон А32ОТ","т",400,807.54,323.01600000000002,1340,1395,1327,{"$f":"E13*I13/1000","v":558}]
[4]
[5]
[null,null,"Итого материалы",null,null,null,{"$f":"12500000/1.054/1000","v":11859.582542694496},null,null,null,61789.626594703594]
["ОБОРУДОВАНИЕ С ОБОСНОВАНИЕМ \"ПРАЙС-ЛИСТ\""]
[1,"ЛСР 08-05, п. 264","Автоматическая дорожная метеорологическая станция","компл.",1,2750000,{"$f":"E18*F18","v":2750000},4200000,4350000,4540000,{"$f":"E18*I18/1000","v":4350}]
[2]
[null,null,"Итого оборудование",null,null,null,{"$f":"4064.81*1000/1.054/1000","v":3856.555977229601},null,null,null,7316.6575941755991]
[]
[null,"Все данные в таблице приведены условно"]
["*","Для проведения расчета принимается минимальное значение цены ресурса"]